fUST/lending_fUST_20250907
["ID","MTS","AMOUNT","RATE_DAILY","PERIOD"]
[383926606,1757175032290,-188.41063916,0.00013697,2]
[383926607,1757175032300,-166.82916937,0.00013697,2]
[383926608,1757175032310,-214.3923464,0.00013697,2]
[383926609,1757175032320,-374.74022028,0.00013698,2]
[383926610,1757175032330,-480.0,0.00013698,2]
[383926611,1757175032340,-232.56421212,0.00013698,2]
[383926612,1757175032349,-480.0,0.00013698,2]
[383926613,1757175032359,-480.0,0.00013698,2]
[383926614,1757175032368,-1062.32,0.00013698,2]
[383926615,1757175032378,-480.0,0.00013698,2]
[383926616,1757175032388,-3070.29,0.00013698,2]
[383926617,1757175032398,-480.0,0.00013698,2]
[383926618,1757175032407,-77.42579945,0.00013698,2]
[383926619,1757175032669,-376.14580871,0.00013698,2]
[383926643,1757175038407,-26.42839184,0.00013698,2]
[383926645,1757175038417,-480.0,0.00013698,2]
[383926647,1757175038426,-789.4,0.00013698,2]
[383926649,1757175038435,-1260.34558096,0.00013698,2]
[383927020,1757175042536,-1281.74441904,0.00013698,2]
[383927021,1757175042546,-480.0,0.00013698,2]
[383927022,1757175042555,-480.0,0.00013698,2]
[383927023,1757175042565,-15779.0,0.00013698,2]
[383927025,1757175042574,-480.0,0.00013698,2]
[383927027,1757175042585,-480.0,0.00013698,2]
[383927029,1757175042595,-480.0,0.00013698,2]
[383927030,1757175042604,-480.0,0.00013698,2]
[383927032,1757175042614,-480.0,0.00013698,2]
[383927035,1757175042624,-529.1224891,0.00013698,2]
[383927038,1757175042633,-480.0,0.00013698,2]
[383927040,1757175042643,-209.79,0.00013698,2]
[383927042,1757175042653,-480.0,0.00013698,2]
[383927044,1757175042663,-521.53,0.00013698,2]
[383927046,1757175042672,-480.0,0.00013698,2]
[383927048,1757175042682,-480.0,0.00013698,2]
[383927050,1757175042691,-480.0,0.00013698,2]
[383927052,1757175042701,-480.0,0.00013698,2]
[383927054,1757175042711,-1014.65,0.00013698,2]
[383927056,1757175042723,-480.0,0.00013698,2]
[383927059,1757175042732,-480.0,0.00013698,2]
[383927061,1757175042743,-480.0,0.00013698,2]
[383927063,1757175042759,-892.25,0.00013698,2]
[383927065,1757175042769,-480.0,0.00013698,2]
[383927067,1757175042778,-480.0,0.00013698,2]
[383927069,1757175042788,-480.0,0.00013698,2]
[383927071,1757175042799,-899.77,0.00013698,2]
[383927073,1757175042810,-480.0,0.00013698,2]
[383927075,1757175042819,-2622.8,0.00013698,2]
[383927078,1757175042832,-207.63342841,0.00013698,2]
[383927081,1757175042843,-480.0,0.00013698,2]
[383927083,1757175042852,-485.8789898,0.00013698,2]
[383927086,1757175042861,-6324.94,0.00013698,2]
[383927087,1757175042871,-480.0,0.00013698,2]
[383927088,1757175042880,-1030.86,0.00013698,2]
[383927089,1757175042890,-1788.7,0.00013698,2]
[383927090,1757175042899,-502.69,0.00013698,2]
[383927091,1757175042909,-480.0,0.00013698,2]
[383927092,1757175042919,-543.25,0.00013698,2]
[383927093,1757175042929,-515.99,0.00013698,2]
[383927094,1757175042939,-2053.95,0.00013698,2]
[383927096,1757175042949,-480.0,0.00013698,2]
[383927097,1757175042959,-512.3,0.00013698,2]
[383927098,1757175042968,-1039.44,0.00013698,2]
[383927099,1757175042978,-480.0,0.00013698,2]
[383927100,1757175042988,-483.94,0.00013698,2]
[383927101,1757175042997,-480.0,0.00013698,2]
[383927102,1757175043007,-480.0,0.00013698,2]
[383927103,1757175043017,-1028.32,0.00013698,2]
[383927104,1757175043027,-486.40826238,0.00013698,2]
[383927105,1757175043038,-920.28,0.00013698,2]
[383927106,1757175043048,-9687.64,0.00013698,2]
[383927107,1757175043058,-480.0,0.00013698,2]
[383927108,1757175043067,-480.0,0.00013698,2]
[383927109,1757175043078,-737.65,0.00013698,2]
[383927111,1757175043087,-480.0,0.00013698,2]
[383927113,1757175043097,-480.0,0.00013698,2]
[383927114,1757175043106,-1134.93,0.00013698,2]
[383927115,1757175043117,-480.0,0.00013698,2]
[383927116,1757175043127,-480.0,0.00013698,2]
[383927117,1757175043135,-480.0,0.00013698,2]
[383927118,1757175043145,-3898.97,0.00013698,2]
[383927119,1757175043154,-2314.35,0.00013698,2]
[383927120,1757175043164,-1879.21,0.00013698,2]
[383927121,1757175043173,-480.0,0.00013698,2]
[383927122,1757175043183,-480.0,0.00013698,2]
[383927123,1757175043193,-257.21173527,0.00013698,2]
[383927168,1757175043648,-1176.73912595,0.00013598,2]
[383927171,1757175043660,-154.70203832,0.00013598,2]
[383927173,1757175043670,-162.53110221,0.00013697,2]
[383927175,1757175043680,-154.98733919,0.00013697,2]
[383927177,1757175043692,-432.06314979,0.00013697,2]
[383927179,1757175043701,-500.0,0.00013697,2]
[383927181,1757175043711,-500.0,0.00013697,2]
[383927183,1757175043721,-500.0,0.00013697,2]
[383927185,1757175043732,-500.0,0.00013697,2]
[383927187,1757175043742,-500.0,0.00013697,2]
[383927189,1757175043756,-500.0,0.00013697,2]
[383927191,1757175043766,-500.0,0.00013697,2]
[383927193,1757175043775,-467.49325296,0.00013697,2]
[383927196,1757175043786,-32.50674704,0.00013697,2]
[383927198,1757175043796,-500.0,0.00013697,2]
[383927200,1757175043806,-500.0,0.00013697,2]
[383927202,1757175043817,-500.0,0.00013697,2]
[383927204,1757175043827,-222.78826473,0.00013698,2]
[383927206,1757175043836,-604.57120864,0.00013698,2]
[383927208,1757175043845,-282.42004903,0.00013698,2]
[383927210,1757175043861,-1030.39995097,0.00013698,2]
[383927212,1757175043871,-480.0,0.00013698,2]
[383927214,1757175043880,-85.40004903,0.00013698,2]
[383927217,1757175043891,-394.59995097,0.00013698,2]
[383927219,1757175043901,-481.67199999,0.00013698,2]
[383927285,1757175044540,-324.675924,0.00013697,2]
[383927287,1757175044551,-175.324076,0.00013697,2]
[383927289,1757175044560,-500.0,0.00013697,2]
[383927291,1757175044571,-86.65800001,0.00013698,2]
[383927293,1757175044581,-2116.85,0.00013698,2]
[383927296,1757175044591,-480.0,0.00013698,2]
[383927297,1757175044600,-480.0,0.00013698,2]
[383927299,1757175044610,-4792.25,0.00013698,2]
[383927301,1757175044619,-480.0,0.00013698,2]
[383927304,1757175044630,-480.0,0.00013698,2]
[383927306,1757175044641,-673.63,0.00013698,2]
[383927308,1757175044650,-480.0,0.00013698,2]
[383927310,1757175044660,-1752.33,0.00013698,2]
[383927312,1757175044670,-696.74,0.00013698,2]
[383927314,1757175044680,-480.0,0.00013698,2]
[383927316,1757175044689,-560.03,0.00013698,2]
[383927318,1757175044699,-480.0,0.00013698,2]
[383927320,1757175044709,-480.0,0.00013698,2]
[383927322,1757175044720,-2147.29,0.00013698,2]
[383927324,1757175044730,-480.0,0.00013698,2]
[383927326,1757175044740,-480.0,0.00013698,2]
[383927328,1757175044753,-480.0,0.00013698,2]
[383927330,1757175044763,-509.27,0.00013698,2]
[383927332,1757175044772,-609.36,0.00013698,2]
[383927334,1757175044782,-480.0,0.00013698,2]
[383927336,1757175044791,-981.86,0.00013698,2]
[383927354,1757175044975,-2519.73,0.00013698,2]
[383927356,1757175044985,-480.0,0.00013698,2]
[383927358,1757175044995,-480.0,0.00013698,2]
[383927360,1757175045005,-480.0,0.00013698,2]
[383927361,1757175045015,-742.7,0.00013698,2]
[383927364,1757175045025,-591.11,0.00013698,2]
[383927366,1757175045035,-480.0,0.00013698,2]
[383927368,1757175045046,-577.41,0.00013698,2]
[383927370,1757175045056,-1016.7,0.00013698,2]
[383927372,1757175045066,-480.0,0.00013698,2]
[383927374,1757175045076,-371.75094622,0.00013698,2]
[383927376,1757175045086,-480.0,0.00013698,2]
[383927378,1757175045096,-480.0,0.00013698,2]
[383927380,1757175045106,-480.0,0.00013698,2]
[383927382,1757175045116,-1693.24,0.00013698,2]
[383927384,1757175045125,-480.0,0.00013698,2]
[383927386,1757175045135,-480.0,0.00013698,2]
[383927388,1757175045144,-308.00356749,0.00013698,2]
[383927405,1757175045305,-171.99643251,0.00013698,2]
[383927407,1757175045316,-677.66,0.00013698,2]
[383927409,1757175045326,-480.0,0.00013698,2]
[383927411,1757175045336,-231.90158549,0.00013698,2]
[383927413,1757175045347,-248.09841451,0.00013698,2]
[383927415,1757175045357,-480.0,0.00013698,2]
[383927417,1757175045367,-480.0,0.00013698,2]
[383927419,1757175045376,-1016.1492708,0.00013698,2]
[383927530,1757175046534,-31.4507292,0.00013698,2]
[383927532,1757175046545,-884.64,0.00013698,2]
[383927534,1757175046555,-480.0,0.00013698,2]
[383927536,1757175046564,-480.0,0.00013698,2]
[383927538,1757175046573,-778.21,0.00013698,2]
[383927540,1757175046583,-502.92503868,0.00013698,2]
[383927542,1757175046592,-480.0,0.00013698,2]
[383927544,1757175046601,-632.70234872,0.00013698,2]
[383927548,1757175046625,-1763.50765128,0.00013698,2]
[383927550,1757175046634,-480.0,0.00013698,2]
[383927552,1757175046645,-2743.66,0.00013698,2]
[383927554,1757175046653,-480.0,0.00013698,2]
[383927556,1757175046662,-482.92247789,0.00013698,2]
[383927558,1757175046672,-480.0,0.00013698,2]
[383927560,1757175046681,-1098.16,0.00013698,2]
[383927562,1757175046691,-228.12257657,0.00013698,2]
[383927564,1757175046700,-174.42315909,0.00013698,2]
[383927566,1757175046709,-180.62,0.00013698,2]
[383927568,1757175046719,-520.67,0.00013698,2]
[383927570,1757175046729,-480.0,0.00013698,2]
[383927572,1757175046738,-480.0,0.00013698,2]
[383927574,1757175046751,-499.13,0.00013698,2]
[383927576,1757175046760,-480.0,0.00013698,2]
[383927578,1757175046771,-262.66688904,0.00013698,2]
[383927580,1757175046780,-500.0,0.00013698,2]
[383927582,1757175046791,-15208.44363829,0.00013698,2]
[383928010,1757175302966,244.95,0.00012329,2]
[383928011,1757175313550,987.82,0.00012329,2]
[383928012,1757175324353,823.18,0.00012329,2]
[383928013,1757175334833,834.39,0.00012329,2]
[383928015,1757175345541,695.33,0.00012329,2]
[383928016,1757175356291,579.44,0.00012329,2]
[383928017,1757175366753,482.87,0.00012329,2]
[383928018,1757175377169,402.39,0.00012329,2]
[383928019,1757175387643,335.32,0.00012329,2]
[383928020,1757175398663,279.44,0.00012329,2]
[383928021,1757175409153,232.86,0.00012329,2]
[383928022,1757175419854,194.05,0.00012329,2]
[383928027,1757175430304,161.71,0.00012329,2]
[383928029,1757175440754,808.59,0.00012329,2]
[383928030,1757175486170,160.49643942,0.00013149,2]
[383928031,1757175495379,160.49643942,0.00013149,2]
[383928032,1757175643719,22539.5692385,0.00012645,2]
[383928044,1757176089647,1500.0,0.00013148,2]
[383928045,1757176117897,272.8918564,0.00027397,120]
[383928048,1757176131411,1000.0,0.00012585,2]
[383928059,1757176185089,26885.1481362,0.00012579,2]
[383928105,1757176232279,-1500.0,0.00013415,2]
[383928106,1757176232290,-1280.44551838,0.00013494,2]
[383928107,1757176232300,-1200.0,0.00013551,2]
[383928108,1757176232309,-975.0,0.00013552,2]
[383928110,1757176232319,-634.0,0.00013552,2]
[383928112,1757176232329,-2154.0,0.00013552,2]
[383928114,1757176232339,-409.0,0.00013552,2]
[383928115,1757176232348,-165.21169706,0.00013576,2]
[383928116,1757176232357,-4167.3582556,0.00013578,2]
[383928117,1757176232367,-207.78093407,0.00013588,2]
[383928118,1757176232377,-168.3888056,0.00013588,2]
[383928119,1757176232386,-500.0,0.00013594,2]
[383928120,1757176232395,-6901.41413099,0.00013594,2]
[383928122,1757176232459,-1865.72436088,0.00013594,2]
[383928140,1757176238226,-5810.2669049,0.00013594,2]
[383928145,1757176238280,-1063.96716672,0.00013594,2]
[383928152,1757176238338,-16670.88908643,0.00013594,2]
[383928293,1757176240391,-17687.73835008,0.00013594,2]
[383928295,1757176240400,-532.05950582,0.00013595,2]
[383928297,1757176240410,-500.0,0.00013595,2]
[383928299,1757176240419,-500.0,0.00013595,2]
[383928301,1757176240429,-500.0,0.00013595,2]
[383928303,1757176240438,-500.0,0.00013595,2]
[383928305,1757176240448,-500.0,0.00013595,2]
[383928307,1757176240460,-500.0,0.00013595,2]
[383928309,1757176240470,-500.0,0.00013595,2]
[383928311,1757176240479,-194.20214411,0.00013595,2]
[383928316,1757176240518,-305.79785589,0.00013595,2]
[383928318,1757176240528,-500.0,0.00013595,2]
[383928320,1757176240537,-500.0,0.00013595,2]
[383928322,1757176240546,-324.88263076,0.00013595,2]
[383928324,1757176240555,-500.0,0.00013595,2]
[383928326,1757176240565,-500.0,0.00013595,2]
[383928328,1757176240575,-84.21775157,0.00013595,2]
[383928413,1757176243820,-415.78224843,0.00013595,2]
[383928414,1757176243830,-402.21775157,0.00013595,2]
[383928415,1757176243984,-97.78224843,0.00013595,2]
[383928416,1757176243995,-304.21517557,0.00013595,2]
[383928442,1757176246449,-195.78482443,0.00013595,2]
[383928443,1757176246466,-250.0,0.00013595,2]
[383928444,1757176246476,-500.0,0.00013595,2]
[383928445,1757176246487,-500.0,0.00013595,2]
[383928446,1757176246496,-500.0,0.00013595,2]
[383928447,1757176246506,-500.0,0.00013595,2]
[383928448,1757176246515,-500.0,0.00013595,2]
[383928449,1757176246529,-500.0,0.00013595,2]
[383928450,1757176246539,-178.19706642,0.00013595,2]
[383928451,1757176246549,-5774.63165381,0.00013596,2]
[383928474,1757176652973,1815.8201658,0.00012556,2]
[383928475,1757176705864,10000.0,0.00012534,2]
[383928477,1757176832216,1120.3898286,0.00013092,2]
[383928478,1757176865051,666.0,0.00012533,2]
[383928481,1757176972818,188.6663642,0.00012538,2]
[383928485,1757177187345,1000.0,0.00012558,2]
[383928486,1757177297514,174.810727,0.00013086,2]
[383928492,1757177432553,-700.0,0.00013355,2]
[383928494,1757177432563,-1181.70802188,0.00013488,2]
[383928496,1757177432573,-400.0,0.0001349,2]
[383928498,1757177432582,-10242.57813537,0.00013491,2]
[383928499,1757177432592,-11907.27682221,0.000135,2]
[383928500,1757177432602,-380.565,0.00013564,2]
[383928501,1757177432612,-975.0,0.00013564,2]
[383928502,1757177432622,-409.0,0.00013564,2]
[383928504,1757177432631,-2154.0,0.00013564,2]
[383928506,1757177432640,-634.0,0.00013564,2]
[383928508,1757177432650,-8254.91635111,0.00013564,2]
[383928543,1757177438291,-19362.93056349,0.00013564,2]
[383928546,1757177438303,-1327.22874725,0.00013564,2]
[383928548,1757177438316,-1978.62964015,0.00013564,2]
[383928552,1757177438345,-359.1962722,0.00013564,2]
[383928554,1757177438357,-1077.8489278,0.00013564,2]
[383928707,1757177443679,-150.0,0.00013564,2]
[383928708,1757177443689,-313.278,0.00013564,2]
[383928712,1757177446553,-2647.25680459,0.00013429,2]
[383928713,1757177446563,-13756.56386623,0.00013564,2]
[383928714,1757177446575,-3569.40763177,0.00013564,2]
[383928715,1757177446584,-291.60374573,0.00013588,2]
[383928716,1757177446594,-500.0,0.00013595,2]
[383928717,1757177446604,-500.0,0.00013595,2]
[383928718,1757177446613,-500.0,0.00013595,2]
[383928719,1757177446623,-500.0,0.00013595,2]
[383928720,1757177446633,-325.95039399,0.00013595,2]
[383928721,1757177446642,-500.0,0.00013595,2]
[383928722,1757177446652,-500.0,0.00013595,2]
[383928723,1757177446662,-500.0,0.00013595,2]
[383928724,1757177446671,-500.0,0.00013595,2]
[383928725,1757177446681,-500.0,0.00013595,2]
[383928726,1757177446690,-500.0,0.00013595,2]
[383928727,1757177446699,-500.0,0.00013595,2]
[383928728,1757177446709,-500.0,0.00013595,2]
[383928729,1757177446719,-616.12616832,0.00013595,2]
[383928730,1757177446729,-500.0,0.00013595,2]
[383928731,1757177446739,-500.0,0.00013595,2]
[383928732,1757177446748,-500.0,0.00013595,2]
[383928733,1757177446757,-500.0,0.00013595,2]
[383928734,1757177446768,-500.0,0.00013595,2]
[383928735,1757177446777,-435.74297171,0.00013595,2]
[383928736,1757177446793,-64.25702829,0.00013595,2]
[383928737,1757177446802,-500.0,0.00013595,2]
[383928738,1757177446811,-500.0,0.00013595,2]
[383928739,1757177446821,-167.93266495,0.00013595,2]
[383928740,1757177446830,-500.0,0.00013595,2]
[383928741,1757177446839,-423.14234675,0.00013595,2]
[383928742,1757177446849,-500.0,0.00013595,2]
[383928743,1757177446858,-500.0,0.00013595,2]
[383928744,1757177446868,-500.0,0.00013595,2]
[383928745,1757177446877,-500.0,0.00013595,2]
[383928746,1757177446886,-500.0,0.00013595,2]
[383928747,1757177446896,-300.0,0.00013595,2]
[383928748,1757177446905,-299.99999999,0.00013595,2]
[383928749,1757177446916,-500.0,0.00013595,2]
[383928750,1757177446925,-500.0,0.00013595,2]
[383928751,1757177446935,-329.91385599,0.00013595,2]
[383928752,1757177446947,-170.08614401,0.00013595,2]
[383928753,1757177446956,-281.55924186,0.00013595,2]
[383928754,1757177446982,-218.44075814,0.00013595,2]
[383928755,1757177446991,-500.0,0.00013595,2]
[383928756,1757177447001,-500.0,0.00013595,2]
[383928757,1757177447011,-500.0,0.00013595,2]
[383928758,1757177447023,-500.0,0.00013595,2]
[383928759,1757177447034,-500.0,0.00013595,2]
[383928760,1757177447043,-500.0,0.00013595,2]
[383928761,1757177447053,-500.0,0.00013595,2]
[383928762,1757177447063,-174.42315909,0.00013596,2]
[383928763,1757177447072,-327.0,0.00013596,2]
[383928764,1757177447082,-327.0,0.00013596,2]
[383928765,1757177447091,-327.0,0.00013596,2]
[383928766,1757177447100,-327.0,0.00013596,2]
[383928767,1757177447110,-327.0,0.00013596,2]
[383928768,1757177447120,-327.0,0.00013596,2]
[383928769,1757177447129,-327.0,0.00013596,2]
[383928770,1757177447139,-361.41838457,0.00013596,2]
[383928771,1757177447149,-1304.0,0.00013596,2]
[383928772,1757177447158,-1304.0,0.00013596,2]
[383928773,1757177447168,-1304.0,0.00013596,2]
[383928774,1757177447177,-1304.0,0.00013596,2]
[383928775,1757177447187,-1304.0,0.00013596,2]
[383928776,1757177447196,-1304.0,0.00013596,2]
[383928777,1757177447206,-1304.0,0.00013596,2]
[383928778,1757177447215,-1304.0,0.00013596,2]
[383928779,1757177447225,-1304.0,0.00013596,2]
[383928780,1757177447235,-1304.0,0.00013596,2]
[383928781,1757177447245,-1304.0,0.00013596,2]
[383928782,1757177447255,-740.10416734,0.00013596,2]
[383928783,1757177447264,-327.0,0.00013596,2]
[383928784,1757177447274,-327.0,0.00013596,2]
[383928785,1757177447284,-327.0,0.00013596,2]
[383928786,1757177447294,-327.0,0.00013596,2]
[383928787,1757177447304,-327.0,0.00013596,2]
[383928788,1757177447315,-327.0,0.00013596,2]
[383928789,1757177447325,-327.0,0.00013596,2]
[383928790,1757177447335,-2950.66586986,0.00013598,2]
[383928791,1757177447345,-165.21169703,0.00013598,2]
[383928792,1757177447355,-944.345071,0.00013604,2]
[383928793,1757177447365,-203.21852024,0.00013609,2]
[383928794,1757177447375,-203.21852024,0.00013609,2]
[383928795,1757177447384,-160.0,0.00013643,2]
[383928796,1757177447394,-160.0,0.00013643,2]
[383928797,1757177447404,-232.99021696,0.00013643,2]
[383928798,1757177447414,-846.58554688,0.00013643,2]
[383928799,1757177447424,-160.0,0.00013645,2]
[383928800,1757177447433,-417.15472785,0.00013645,2]
[383928801,1757177447442,-530.56961759,0.00013645,2]
[383928802,1757177447451,-217.58669629,0.00013645,2]
[383928803,1757177447460,-160.0,0.00013645,2]
[383928804,1757177447469,-500.0,0.00013646,2]
[383928805,1757177447479,-157.0,0.00013651,2]
[383928806,1757177447487,-157.0,0.00013651,2]
[383928807,1757177447496,-157.0,0.00013651,2]
[383928808,1757177447506,-814.0,0.00013651,2]
[383928809,1757177447515,-157.0,0.00013651,2]
[383928810,1757177447524,-157.0,0.00013651,2]
[383928811,1757177447534,-157.0,0.00013651,2]
[383928812,1757177447543,-500.0,0.00013673,2]
[383928813,1757177447552,-619.59592135,0.00013673,2]
[383928814,1757177447561,-500.0,0.00013673,2]
[383928815,1757177447571,-301.43021995,0.00013673,2]
[383928816,1757177447581,-500.0,0.00013673,2]
[383928817,1757177447589,-372.44165407,0.00013697,2]
[383928818,1757177447598,-500.0,0.00013697,2]
[383928819,1757177447607,-500.0,0.00013697,2]
[383928820,1757177447617,-500.0,0.00013697,2]
[383928821,1757177447626,-500.0,0.00013697,2]
[383928822,1757177447635,-500.0,0.00013697,2]
[383928823,1757177447644,-500.0,0.00013697,2]
[383928824,1757177447654,-500.0,0.00013697,2]
[383928825,1757177447663,-500.0,0.00013697,2]
[383928826,1757177447672,-627.15578803,0.00013697,2]
[383928827,1757177447682,-500.0,0.00013697,2]
[383928828,1757177447691,-500.0,0.00013697,2]
[383928829,1757177447700,-500.0,0.00013697,2]
[383928830,1757177447709,-500.0,0.00013697,2]
[383928831,1757177447721,-500.0,0.00013697,2]
[383928832,1757177447730,-500.0,0.00013697,2]
[383928833,1757177447739,-500.0,0.00013697,2]
[383928834,1757177447749,-500.0,0.00013697,2]
[383928835,1757177447760,-480.0,0.00013698,2]
[383928836,1757177447769,-480.0,0.00013698,2]
[383928837,1757177447779,-480.0,0.00013698,2]
[383928838,1757177447788,-205.97,0.00013698,2]
[383928839,1757177447798,-480.0,0.00013698,2]
[383928840,1757177447807,-336.88018856,0.00013698,2]
[383928841,1757177447818,-982.86,0.00013698,2]
[383928842,1757177447827,-161.39773816,0.00013698,2]
[383928843,1757177447837,-480.0,0.00013698,2]
[383928844,1757177447846,-157.0,0.00013698,2]
[383928845,1757177447856,-500.0,0.00013698,2]
[383928846,1757177447865,-480.0,0.00013698,2]
[383928847,1757177447875,-480.0,0.00013698,2]
[383928848,1757177447885,-480.0,0.00013698,2]
[383928849,1757177447895,-292.42620475,0.00013698,2]
[383928850,1757177447905,-524.62,0.00013698,2]
[383928851,1757177447915,-478.51242916,0.00013698,2]
[383928852,1757177447925,-480.0,0.00013698,2]
[383928853,1757177447935,-480.0,0.00013698,2]
[383928854,1757177447945,-480.0,0.00013698,2]
[383928855,1757177447954,-480.0,0.00013698,2]
[383928856,1757177447964,-485.08145526,0.00013698,2]
[383928857,1757177447974,-480.0,0.00013698,2]
[383928858,1757177447983,-653.35,0.00013698,2]
[383928859,1757177447993,-480.0,0.00013698,2]
[383928860,1757177448003,-480.0,0.00013698,2]
[383928861,1757177448013,-339.01,0.00013698,2]
[383928862,1757177448025,-480.0,0.00013698,2]
[383928863,1757177448037,-480.0,0.00013698,2]
[383928864,1757177448047,-1088.68,0.00013698,2]
[383928865,1757177448057,-480.0,0.00013698,2]
[383928866,1757177448069,-480.0,0.00013698,2]
[383928867,1757177448079,-1031.24,0.00013698,2]
[383928868,1757177448090,-480.0,0.00013698,2]
[383928869,1757177448101,-318.02624324,0.00013698,2]
[383928870,1757177448112,-480.0,0.00013698,2]
[383928871,1757177448122,-480.0,0.00013698,2]
[383928872,1757177448133,-343.08887986,0.00013698,2]
[383928873,1757177448142,-480.0,0.00013698,2]
[383928874,1757177448151,-480.0,0.00013698,2]
[383928875,1757177448161,-498.97,0.00013698,2]
[383928876,1757177448171,-495.12,0.00013698,2]
[383928877,1757177448180,-569.58,0.00013698,2]
[383928878,1757177448190,-480.0,0.00013698,2]
[383928879,1757177448200,-480.0,0.00013698,2]
[383928880,1757177448210,-480.0,0.00013698,2]
[383928881,1757177448219,-480.0,0.00013698,2]
[383928882,1757177448229,-480.0,0.00013698,2]
[383928883,1757177448239,-480.0,0.00013698,2]
[383928884,1757177448248,-621.41454306,0.00013698,2]
[383928885,1757177448258,-480.0,0.00013698,2]
[383928886,1757177448268,-480.0,0.00013698,2]
[383928887,1757177448277,-480.0,0.00013698,2]
[383928888,1757177448287,-480.0,0.00013698,2]
[383928889,1757177448297,-875.75,0.00013698,2]
[383928890,1757177448307,-578.34,0.00013698,2]
[383928891,1757177448317,-480.0,0.00013698,2]
[383928892,1757177448326,-616.1,0.00013698,2]
[383928893,1757177448336,-480.0,0.00013698,2]
[383928894,1757177448345,-527.18,0.00013698,2]
[383928895,1757177448354,-480.0,0.00013698,2]
[383928896,1757177448364,-507.34,0.00013698,2]
[383928897,1757177448373,-480.0,0.00013698,2]
[383928898,1757177448383,-480.0,0.00013698,2]
[383928899,1757177448393,-480.0,0.00013698,2]
[383928900,1757177448403,-480.0,0.00013698,2]
[383928901,1757177448413,-480.0,0.00013698,2]
[383928902,1757177448615,-1165.68,0.00013698,2]
[383928903,1757177448626,-483.37474943,0.00013698,2]
[383928904,1757177448636,-1125.83,0.00013698,2]
[383928905,1757177448646,-482.39,0.00013698,2]
[383928906,1757177448656,-480.0,0.00013698,2]
[383928907,1757177448666,-1067.59,0.00013698,2]
[383928908,1757177448676,-973.09,0.00013698,2]
[383928909,1757177448686,-480.0,0.00013698,2]
[383928910,1757177448696,-480.0,0.00013698,2]
[383928911,1757177448706,-964.99,0.00013698,2]
[383928912,1757177448716,-480.0,0.00013698,2]
[383928913,1757177448725,-480.0,0.00013698,2]
[383928914,1757177448734,-328.59548206,0.00013698,2]
[383928915,1757177448744,-480.0,0.00013698,2]
[383928916,1757177448754,-480.0,0.00013698,2]
[383928917,1757177448763,-480.0,0.00013698,2]
[383928918,1757177448773,-873.8,0.00013698,2]
[383928919,1757177448784,-480.0,0.00013698,2]
[383928920,1757177448794,-480.0,0.00013698,2]
[383928921,1757177448804,-480.0,0.00013698,2]
[383928922,1757177448814,-480.0,0.00013698,2]
[383928923,1757177448823,-480.0,0.00013698,2]
[383928924,1757177448833,-480.0,0.00013698,2]
[383928925,1757177448843,-434.55944663,0.00013698,2]
[383928926,1757177448854,-562.74363949,0.00013698,2]
[383928927,1757177448864,-480.0,0.00013698,2]
[383928928,1757177448874,-560.72,0.00013698,2]
[383928929,1757177448885,-480.0,0.00013698,2]